bitfinex/quotes_BTCUSD_20250615
["timestamp","ask_amount","ask_price","bid_price","bid_amount"]
[1749996485170,0.41569175,105580.0,105570.0,0.26533583]
[1749996485859,0.39674904,105580.0,105570.0,0.26533583]
[1749996486329,0.39774904,105580.0,105570.0,0.26533583]
[1749996487002,0.39874904,105580.0,105570.0,0.26533583]
[1749996487234,0.40821999,105580.0,105570.0,0.26533583]
[1749996487458,0.4176913,105580.0,105570.0,0.26533583]
[1749996488842,0.95696654,105580.0,105570.0,0.42093583]
[1749996489099,0.96643794,105580.0,105570.0,0.42093583]
[1749996489321,0.95696654,105580.0,105570.0,0.42093583]
[1749996489543,0.96643794,105580.0,105570.0,0.26533583]
[1749996489767,1.14639689,105580.0,105570.0,0.41146408]
[1749996490386,1.14639689,105580.0,105570.0,0.24639224]
[1749996490624,1.20466132,105580.0,105560.0,0.2080587]
[1749996490876,0.76957125,105570.0,105560.0,0.41047755]
[1749996491098,0.76661107,105570.0,105560.0,0.41047755]
[1749996492004,0.41600743,105570.0,105560.0,0.4199502]
[1749996492452,0.60545518,105570.0,105560.0,0.2643502]
[1749996492672,0.60545518,105570.0,105560.0,0.4199502]
[1749996493581,0.44442304,105570.0,105560.0,0.4199502]
[1749996493799,1.12545454,105580.0,105570.0,0.22679206]
[1749996494261,1.11598359,105580.0,105570.0,0.21731995]
[1749996494494,1.1065121,105580.0,105570.0,0.21732013]
[1749996495080,1.1075121,105580.0,105570.0,0.1556]
[1749996495700,0.00947211,105570.0,105560.0,0.24540409]
[1749996495939,0.55170758,105570.0,105560.0,0.40100409]
[1749996496139,0.7381951,105570.0,105560.0,0.24540409]
[1749996496350,0.55821937,105570.0,105560.0,0.40000409]
[1749996496789,0.56769157,105570.0,105560.0,0.40000409]
[1749996496974,0.56769157,105570.0,105560.0,0.40100409]
[1749996497352,0.56769157,105570.0,105560.0,0.40200409]
[1749996497560,0.75713932,105570.0,105560.0,0.40200409]
[1749996497771,0.76661161,105570.0,105560.0,0.40200409]
[1749996497982,0.5676913,105570.0,105560.0,0.40200409]
[1749996498392,0.02841606,105570.0,105560.0,0.40200409]
[1749996499034,0.03137629,105570.0,105560.0,0.40200409]
[1749996499683,0.04084849,105570.0,105560.0,0.40200409]
[1749996500698,0.58012373,105570.0,105560.0,0.40200409]
[1749996500903,0.5771635,105570.0,105560.0,0.40200409]
[1749996501343,0.01894395,105570.0,105560.0,0.40200409]
[1749996501560,0.02841615,105570.0,105560.0,0.24640409]
[1749996501773,0.57065162,105570.0,105560.0,0.40196409]
[1749996501976,0.56769139,105570.0,105560.0,0.40196409]
[1749996502514,0.76661143,105570.0,105560.0,0.2274587]
[1749996502727,0.76661143,105570.0,105560.0,0.35649898]
[1749996502728,0.74766748,105570.0,105560.0,0.35649898]
[1749996502930,0.74766748,105570.0,105560.0,0.20093898]
[1749996503168,0.74766748,105570.0,105560.0,0.38417217]
[1749996503641,0.74766748,105570.0,105560.0,0.41264509]
[1749996503863,0.74766748,105570.0,105560.0,0.41264518]
[1749996504073,0.74766748,105570.0,105560.0,0.4221181]
[1749996504827,0.74766748,105570.0,105560.0,0.41264518]
[1749996505076,0.01894449,105570.0,105560.0,0.41264518]
[1749996505300,0.02190474,105570.0,105560.0,0.43159075]
[1749996506769,0.00296025,105570.0,105560.0,0.43159075]
[1749996506993,0.00947175,105570.0,105560.0,0.43159075]
[1749996507239,1.12545463,105580.0,105560.0,0.43159075]
[1749996507240,1.13492612,105580.0,105570.0,0.20839188]
[1749996507452,0.58617939,105580.0,105570.0,0.25516372]
[1749996507660,0.59565088,105580.0,105570.0,0.25516372]
[1749996507873,1.13492612,105580.0,105570.0,0.25516372]
[1749996509131,0.93602482,105580.0,105570.0,0.25516372]
[1749996509337,0.94649559,105580.0,105570.0,0.25516372]
[1749996509548,0.94649559,105580.0,105570.0,0.26463547]
[1749996509549,0.94749559,105580.0,105570.0,0.26463547]
[1749996509785,0.95696699,105580.0,105570.0,0.26463547]
[1749996510224,1.15586829,105580.0,105570.0,0.26463547]
[1749996511596,0.40822035,105580.0,105570.0,0.26463547]
[1749996512044,0.41769175,105580.0,105570.0,0.26463547]
[1749996513318,0.95696699,105580.0,105570.0,0.26463547]
[1749996513532,0.9474955,105580.0,105570.0,0.26463547]
[1749996513772,0.95696681,105580.0,105570.0,0.26463547]
[1749996513982,0.38927791,105580.0,105570.0,0.26463547]
[1749996514207,0.389278,105580.0,105570.0,0.26463547]
[1749996514431,0.389278,105580.0,105570.0,0.90015247]
[1749996514432,0.03980705,105580.0,105570.0,0.90015247]
[1749996514857,0.03980705,105580.0,105570.0,0.92858201]
[1749996515275,0.03980705,105580.0,105570.0,0.36087723]
[1749996516360,0.03980705,105580.0,105570.0,0.51639723]
[1749996518425,0.03980705,105580.0,105570.0,0.36087723]
[1749996518619,0.03980705,105580.0,105570.0,0.51639723]
[1749996520674,0.03980705,105580.0,105570.0,0.36087723]
[1749996520900,0.03980705,105580.0,105570.0,0.51639723]
[1749996521476,0.03980705,105580.0,105570.0,0.36087723]
[1749996521698,0.04927782,105580.0,105570.0,0.36087723]
[1749996521923,0.22733566,105570.0,105560.0,0.23533898]
[1749996522171,0.7666109,105570.0,105560.0,0.39160491]
[1749996522639,0.73819537,105570.0,105560.0,0.22661208]
[1749996522847,0.73819537,105570.0,105560.0,0.38213208]
[1749996523365,0.73819537,105570.0,105560.0,0.38313208]
[1749996523554,0.73819537,105570.0,105560.0,0.39260491]
[1749996523780,0.73819537,105570.0,105560.0,0.38313208]
[1749996524231,0.73819537,105570.0,105560.0,0.38413208]
[1749996524903,0.73819537,105570.0,105560.0,0.22861208]
[1749996525125,0.73819537,105570.0,105560.0,0.38413208]
[1749996525336,0.73819537,105570.0,105560.0,0.37465898]
[1749996525762,0.73819537,105570.0,105560.0,0.38413217]
[1749996527776,0.73819537,105570.0,105560.0,0.39360527]
[1749996530181,0.73819537,105570.0,105560.0,0.42127819]
[1749996534187,0.73819537,105570.0,105560.0,0.42127774]
[1749996534318,0.73819537,105570.0,105560.0,0.43075048]
[1749996535172,0.73819537,105570.0,105560.0,0.42127774]
[1749996536003,0.74766748,105570.0,105560.0,0.43075039]
[1749996536204,0.74766748,105570.0,105560.0,0.41180491]
[1749996536419,0.74766748,105570.0,105560.0,0.39360491]
[1749996537274,0.20839224,105570.0,105560.0,0.40307774]
[1749996537483,0.74766748,105570.0,105560.0,0.43235048]
[1749996539801,0.74766748,105570.0,105560.0,0.42287774]
[1749996540193,0.74766748,105570.0,105560.0,0.43235048]
[1749996542863,0.74766748,105570.0,105560.0,0.0202]
[1749996543100,1.14098626,105570.0,105560.0,0.15748]
[1749996543310,1.07819537,105570.0,105560.0,0.3469457]
[1749996543524,1.07819537,105570.0,105560.0,0.35641898]
[1749996544388,1.07819537,105570.0,105560.0,0.37491898]
[1749996544604,1.06872299,105570.0,105560.0,0.37491898]
[1749996545064,1.06872299,105570.0,105560.0,0.39331898]
[1749996545274,1.06872299,105570.0,105560.0,0.39389898]
[1749996545505,1.06872299,105570.0,105560.0,0.17598]
[1749996548339,1.11601715,105570.0,105560.0,0.17598]
[1749996549934,1.06872299,105570.0,105560.0,0.17598]
[1749996551098,0.34,105570.0,105560.0,0.41186446]
[1749996551341,0.06687827,105580.0,105560.0,0.41186446]
[1749996551342,0.39674904,105580.0,105570.0,0.21786408]
[1749996551571,0.40622035,105580.0,105570.0,0.26333583]
[1749996551801,0.38727791,105580.0,105570.0,0.26333583]
[1749996552033,0.39674886,105580.0,105570.0,0.26333583]
[1749996552251,0.40621999,105580.0,105570.0,0.26333583]
[1749996552693,0.41669139,105580.0,105570.0,0.26333583]
[1749996552926,0.58717939,105580.0,105570.0,0.05494413]
[1749996553164,0.58717939,105580.0,105570.0,0.24439188]
[1749996553394,0.58717939,105580.0,105570.0,0.25386372]
[1749996553616,1.12645463,105580.0,105570.0,0.24439188]
[1749996553884,0.94649559,105580.0,105570.0,0.41186372]
[1749996554337,0.94749559,105580.0,105570.0,0.41186372]
[1749996554559,0.93802428,105580.0,105570.0,0.42133547]
[1749996554777,0.94749568,105580.0,105570.0,0.41186372]
[1749996554993,0.94749568,105580.0,105570.0,0.42133547]
[1749996555205,0.94749559,105580.0,105570.0,0.42133547]
[1749996556285,0.95696699,105580.0,105570.0,0.40239188]
[1749996556703,1.1463968,105580.0,105570.0,0.40239188]
[1749996557393,1.1463968,105580.0,105570.0,0.38344775]
[1749996557633,1.22360403,105580.0,105570.0,0.37492013]
[1749996557854,1.22360403,105580.0,105570.0,0.39386462]
[1749996558062,1.12745481,105580.0,105570.0,0.39386462]
[1749996559134,1.1179835,105580.0,105570.0,0.38435242]
[1749996559782,1.1179835,105580.0,105570.0,0.23586462]
[1749996559992,1.1179835,105580.0,105570.0,0.38435242]
[1749996560246,1.1085121,105580.0,105570.0,0.38435242]
[1749996560672,0.56923686,105580.0,105570.0,0.38435242]
[1749996560901,1.11516882,105580.0,105570.0,0.40235242]
[1749996561117,1.20466132,105580.0,105570.0,0.24439242]
[1749996561336,1.20466132,105580.0,105570.0,0.40231242]
[1749996561556,1.21131826,105580.0,105570.0,0.40231242]
[1749996561764,1.11516981,105580.0,105570.0,0.40231242]
[1749996561984,1.11516986,105580.0,105570.0,0.40231242]
[1749996562215,0.73736281,105580.0,105570.0,0.40231242]
[1749996562434,0.19808752,105580.0,105570.0,0.40231242]
[1749996562646,0.73070505,105580.0,105570.0,0.41178462]
[1749996562854,0.74683392,105580.0,105570.0,0.42125664]
[1749996563058,0.7468341,105580.0,105570.0,0.43072857]
[1749996563271,0.74683403,105580.0,105570.0,0.43072857]
[1749996563500,0.74017636,105580.0,105570.0,0.42125664]
[1749996563705,0.7468338,105580.0,105570.0,0.41178462]
[1749996563971,0.74017636,105580.0,105570.0,0.42125673]
[1749996564151,0.74683373,105580.0,105570.0,0.42125673]
[1749996564365,0.74683369,105580.0,105570.0,0.42125673]
[1749996564574,0.74683373,105580.0,105570.0,0.42125673]
[1749996564793,0.77954117,105580.0,105570.0,0.42125673]
[1749996565015,0.77954117,105580.0,105570.0,0.41178462]
[1749996565249,0.77672727,105580.0,105570.0,0.39983242]
[1749996565686,0.77672722,105580.0,105570.0,0.20091238]
[1749996565910,0.06977811,105580.0,105570.0,0.41877619]
[1749996566597,0.60905272,105580.0,105570.0,0.41877619]
[1749996567037,0.06977748,105580.0,105570.0,0.41877619]
[1749996567893,0.61852385,105580.0,105570.0,0.41877619]
[1749996568123,0.59011073,105580.0,105570.0,0.41877619]
[1749996568799,0.06030626,105580.0,105570.0,0.41877619]
[1749996569277,0.002,105580.0,105570.0,1.05429319]
[1749996569732,0.002,105580.0,105570.0,1.13080568]
[1749996569966,0.001,105580.0,105570.0,1.48534653]
[1749996570191,0.04864348,105620.0,105610.0,0.21778132]
[1749996570430,0.55774089,105630.0,105620.0,0.20829324]
[1749996570431,0.04398793,105630.0,105620.0,0.20829324]
[1749996570671,0.04398793,105630.0,105620.0,0.21776051]
[1749996570672,0.00951357,105630.0,105620.0,0.21776051]
[1749996570887,0.04087249,105630.0,105620.0,0.2373606]
[1749996571153,4.737e-05,105630.0,105620.0,0.26512787]
[1749996571415,0.01898021,105630.0,105620.0,0.26512787]
[1749996571718,0.02844703,105630.0,105620.0,0.26512787]
[1749996571915,0.02844694,105630.0,105620.0,0.26512787]
[1749996572376,0.02944694,105630.0,105620.0,0.26512787]
[1749996572618,0.01998021,105630.0,105620.0,0.26512787]
[1749996572850,0.04859604,105630.0,105620.0,0.26512787]
[1749996573315,0.04959604,105630.0,105620.0,0.24682787]
[1749996573527,0.59833774,105630.0,105620.0,0.18935807]
[1749996573746,0.04733734,105620.0,105610.0,0.37267297]
[1749996573964,0.04733734,105620.0,105610.0,0.38214114]
[1749996573965,0.57714468,105620.0,105610.0,0.38214114]
[1749996574177,0.58602508,105620.0,105610.0,0.38214123]
[1749996574392,0.00888021,105620.0,105610.0,0.38214123]
[1749996574634,0.39847636,105630.0,105620.0,0.25566069]
[1749996574849,0.42306936,105630.0,105620.0,0.25566069]
[1749996575063,0.41640897,105630.0,105620.0,0.25566069]
[1749996575281,0.41640888,105630.0,105620.0,0.25566069]
[1749996575522,0.39806268,105630.0,105620.0,0.25566069]
[1749996575946,0.41540721,105630.0,105620.0,0.25566069]
[1749996576395,0.40694013,105630.0,105620.0,0.25566069]
[1749996576608,0.40752941,105630.0,105620.0,0.25566069]
[1749996576836,0.40752932,105630.0,105620.0,0.25566069]
[1749996577249,0.4174067,105630.0,105620.0,0.25566069]
[1749996577465,0.07740668,105630.0,105620.0,0.25566069]
[1749996577683,0.08095475,105630.0,105620.0,0.25566069]
[1749996577909,0.04308836,105630.0,105620.0,0.25566069]
[1749996578135,0.05906241,105630.0,105620.0,0.25566069]
[1749996578574,0.60721489,105630.0,105620.0,0.25566069]
[1749996578792,0.60499556,105630.0,105620.0,0.25566069]
[1749996578999,0.60780429,105630.0,105620.0,0.25566069]
[1749996579227,0.09353093,105630.0,105620.0,0.25566069]
[1749996579504,0.81548956,105630.0,105620.0,0.24619342]
[1749996579721,0.82214739,105630.0,105620.0,0.25566087]
[1749996579943,0.08687397,105630.0,105620.0,0.26512823]
[1749996580164,0.08687384,105630.0,105620.0,0.26512823]
[1749996580387,0.26733708,105630.0,105620.0,0.26512823]
[1749996580603,0.09353148,105630.0,105620.0,0.26512823]
[1749996580829,0.08687382,105630.0,105620.0,0.26512823]
[1749996581242,0.06852994,105630.0,105620.0,0.2745955]
[1749996581446,0.08687373,105630.0,105620.0,0.2745955]
[1749996581666,0.08687372,105630.0,105620.0,0.26512823]
[1749996581876,0.08687372,105630.0,105620.0,0.2745955]
[1749996582102,0.27621387,105630.0,105620.0,0.40033351]
[1749996582315,0.80661259,105630.0,105620.0,0.40980096]
[1749996582531,0.81268036,105630.0,105620.0,0.40017351]
[1749996582745,0.80602255,105630.0,105620.0,0.40017351]
[1749996582963,0.80602255,105630.0,105620.0,0.0196]
[1749996582964,0.79374634,105630.0,105620.0,0.0196]
[1749996583201,0.79374631,105630.0,105620.0,0.39078597]
[1749996583408,0.7937462,105630.0,105620.0,0.40025378]
[1749996583579,0.77821213,105630.0,105620.0,0.40025378]
[1749996583805,0.79374648,105630.0,105620.0,0.40025378]
[1749996584000,0.79374645,105630.0,105620.0,0.40025378]
[1749996584232,0.24559445,105630.0,105620.0,0.40025378]
[1749996584366,0.78708886,105630.0,105620.0,0.40025378]
[1749996584574,0.88323808,105630.0,105620.0,0.19882597]
[1749996584777,0.88989518,105630.0,105620.0,0.38069378]
[1749996585021,0.78708827,105630.0,105620.0,0.39962913]
[1749996585223,0.79374536,105630.0,105620.0,0.39962913]
[1749996585424,0.78486921,105630.0,105620.0,0.39962913]
[1749996585626,0.78486923,105630.0,105620.0,0.40909667]
[1749996585826,0.78708832,105630.0,105620.0,0.40909622]
[1749996586027,0.78486927,105630.0,105620.0,0.40909622]
[1749996586394,0.78486932,105630.0,105620.0,0.39016123]
[1749996586586,0.79374555,105630.0,105620.0,0.39962877]
[1749996587014,0.79374557,105630.0,105620.0,0.41742877]
[1749996587220,0.78708855,105630.0,105620.0,0.41742877]
[1749996587431,0.79374586,105630.0,105620.0,0.41742877]
[1749996587661,0.88101866,105630.0,105620.0,0.0178]
[1749996587864,0.88989499,105630.0,105620.0,0.2260936]
[1749996588074,0.79374576,105630.0,105620.0,0.23556123]
[1749996588300,0.79374546,105630.0,105620.0,0.23556123]
[1749996588522,0.79374551,105630.0,105620.0,0.24502877]
[1749996588732,0.78708827,105630.0,105620.0,0.25449622]
[1749996588960,0.61668124,105630.0,105620.0,0.25449568]
[1749996589167,0.26674617,105630.0,105620.0,0.24502841]
[1749996589373,0.81267861,105630.0,105620.0,0.24502841]
[1749996589606,0.06512942,105630.0,105620.0,0.27209577]
[1749996589822,0.59833765,105630.0,105620.0,0.27209532]
[1749996590035,0.62333759,105630.0,105620.0,0.27209532]
[1749996590246,0.05625222,105630.0,105620.0,0.27209532]
[1749996590454,0.0490049,105630.0,105620.0,0.27209532]
[1749996590676,0.0490049,105630.0,105620.0,0.36833708]
[1749996590677,0.04012975,105630.0,105620.0,0.36833708]
[1749996590910,0.04900513,105630.0,105620.0,0.36833708]
[1749996591115,0.04900435,105630.0,105620.0,0.36833708]
[1749996591328,0.04900449,105630.0,105620.0,0.36833708]
[1749996591550,0.04900303,105630.0,105620.0,0.36833708]
[1749996591752,0.04012975,105630.0,105620.0,0.36833708]
[1749996591962,0.04900248,105630.0,105620.0,0.36833708]
[1749996592199,0.04012975,105630.0,105620.0,0.36833708]
[1749996592411,0.04900259,105630.0,105620.0,0.36833708]
[1749996592836,0.04900254,105630.0,105620.0,0.36833708]
[1749996593043,0.04012975,105630.0,105620.0,0.36833708]
[1749996593253,0.04900253,105630.0,105620.0,0.36833708]
[1749996593731,0.04012975,105630.0,105620.0,0.39095087]
[1749996593937,0.00204737,105630.0,105620.0,0.39095087]
[1749996594151,0.01092009,105630.0,105620.0,0.93022611]
[1749996594356,0.01092028,105630.0,105620.0,0.39095087]
[1749996594571,0.00992033,105630.0,105620.0,0.39095087]
[1749996594781,0.00892033,105630.0,105620.0,0.93022611]
[1749996594991,4.737e-05,105630.0,105620.0,0.93122611]
[1749996595198,0.00892028,105630.0,105620.0,0.93222611]
[1749996595427,0.72703539,105660.0,105650.0,0.19876933]
[1749996595631,0.19769801,105660.0,105650.0,0.38790933]
[1749996595836,0.73031842,105660.0,105650.0,0.38790933]
[1749996596069,0.73031842,105660.0,105650.0,0.39737427]
[1749996596275,0.73697358,105660.0,105650.0,0.39737427]
[1749996596690,0.73997317,105660.0,105650.0,0.39737427]
[1749996596902,0.74497316,105660.0,105650.0,0.40683912]
[1749996597116,0.74497288,105660.0,105650.0,0.40683912]
[1749996597332,0.74497281,105660.0,105650.0,0.40683912]
[1749996597544,0.73831842,105660.0,105650.0,0.42503912]
[1749996597763,0.73997234,105660.0,105650.0,0.42503912]
[1749996598001,0.73331842,105660.0,105650.0,0.42503912]
[1749996598219,0.74197219,105660.0,105650.0,0.42503912]
[1749996598445,0.74197219,105660.0,105650.0,0.43450388]
[1749996598714,0.74197217,105660.0,105650.0,0.43450388]
[1749996598976,0.20269701,105660.0,105650.0,0.43450388]
[1749996599187,0.73531842,105660.0,105650.0,0.43450388]
[1749996599608,0.77343104,105660.0,105650.0,0.44396855]
[1749996599835,0.60178885,105660.0,105650.0,0.4439681]
[1749996600112,0.58286138,105660.0,105650.0,0.4439681]
[1749996600316,0.60178849,105660.0,105650.0,0.46664471]
[1749996600544,0.61125236,105660.0,105650.0,0.46664471]
[1749996600962,0.60178849,105660.0,105650.0,0.46664471]
[1749996601168,0.61125236,105660.0,105650.0,0.46664471]
[1749996601409,0.60925227,105660.0,105650.0,0.46664471]
[1749996601841,0.61671623,105660.0,105650.0,0.46664471]
[1749996602056,0.26672809,105660.0,105650.0,0.43825106]
[1749996602283,0.81546764,105660.0,105650.0,0.23001661]
[1749996602509,0.20823373,105650.0,105640.0,0.19878308]
[1749996602731,0.22716415,105650.0,105640.0,0.40115605]
[1749996602939,0.22716415,105650.0,105640.0,0.40115614]
[1749996603169,0.21769948,105650.0,105640.0,0.37848919]
[1749996603382,0.21769939,105650.0,105640.0,0.41592042]
[1749996603598,0.75697463,105650.0,105640.0,0.41592042]
[1749996603828,0.74750969,105650.0,105640.0,0.38804335]
[1749996604037,0.74750969,105650.0,105640.0,0.39750928]
[1749996604468,0.19878833,105640.0,105630.0,0.23710678]
[1749996604691,0.56767258,105640.0,105630.0,0.53230829]
[1749996604903,0.77592693,105640.0,105630.0,0.53226837]
[1749996605149,0.18934014,105630.0,105620.0,0.2186257]
[1749996605368,0.77594868,105630.0,105620.0,0.53285035]
[1749996605588,0.76648248,105630.0,105620.0,0.36237035]
[1749996605812,0.20827405,105630.0,105620.0,0.19882597]
[1749996606023,0.74754929,105630.0,105620.0,0.37877378]
[1749996606239,0.01893481,105620.0,105610.0,0.23774444]
[1749996606475,0.55821005,105620.0,105610.0,0.51389491]
[1749996606697,0.57714558,105620.0,105610.0,0.52328308]
[1749996606906,0.5771454,105620.0,105610.0,0.52328308]
[1749996607347,0.76650347,105620.0,105610.0,0.35292308]
[1749996607574,0.5771454,105620.0,105610.0,0.43192869]
[1749996607826,0.5771454,105620.0,105610.0,0.25672869]
[1749996608049,0.5771454,105620.0,105610.0,0.40712869]
[1749996608253,0.55820996,105620.0,105610.0,0.43192869]
[1749996609161,0.56767759,105620.0,105610.0,0.43192869]
[1749996609395,0.55820996,105620.0,105610.0,0.43192869]
[1749996609597,0.56767759,105620.0,105610.0,0.43192869]
[1749996609821,0.56767768,105620.0,105610.0,0.43192869]
[1749996610040,0.55820996,105620.0,105610.0,0.43192869]
[1749996610253,0.02840235,105620.0,105610.0,0.43192869]
[1749996611314,0.22722823,105620.0,105610.0,0.43176869]
[1749996611521,0.57714531,105620.0,105610.0,0.43176869]
[1749996612156,0.77597128,105620.0,105610.0,0.43176887]
[1749996612375,0.55820996,105620.0,105610.0,0.27119704]
[1749996612588,0.55820996,105620.0,105610.0,0.44111704]
[1749996612800,0.56767768,105620.0,105610.0,0.44111704]
[1749996613034,0.76650356,105620.0,105610.0,0.44111704]
[1749996613244,0.57714549,105620.0,105610.0,0.44111704]
[1749996613464,0.5676775,105620.0,105610.0,0.44111704]
[1749996613677,0.02840226,105620.0,105610.0,0.44111704]
[1749996613892,0.53927524,105620.0,105610.0,0.44111704]
[1749996614110,0.55820987,105620.0,105610.0,0.44111704]
[1749996614594,0.63379833,105630.0,105620.0,0.21776096]
[1749996614823,0.82313847,105630.0,105620.0,0.19882597]
[1749996615047,0.82313847,105630.0,105620.0,0.20829378]
[1749996616790,0.20827387,105630.0,105620.0,0.2177615]
[1749996617005,0.74754911,105630.0,105620.0,0.3871215]
[1749996617437,0.74754911,105630.0,105620.0,0.3881215]
[1749996617873,0.74754911,105630.0,105620.0,0.39758913]
[1749996618792,0.74754911,105630.0,105620.0,0.40705604]
[1749996618793,0.00946646,105630.0,105620.0,0.40705604]
[1749996618998,0.00946646,105630.0,105620.0,0.44565604]
[1749996618999,0.56767463,105630.0,105620.0,0.44565604]
[1749996619214,0.57714145,105630.0,105620.0,0.44565604]
[1749996619433,0.33039239,105630.0,105620.0,0.44565604]
[1749996619638,0.20882222,105640.0,105630.0,0.24630689]
[1749996619639,5.28885583,105640.0,105630.0,0.24630689]
[1749996619844,0.76646118,105640.0,105630.0,0.24630706]
[1749996620269,0.75699552,105640.0,105630.0,0.22720706]
[1749996620475,0.74752959,105640.0,105630.0,0.20827387]
[1749996620685,0.01893293,105630.0,105620.0,0.41625288]
[1749996620905,0.56767499,105630.0,105620.0,0.41625288]
[1749996621332,0.77594886,105630.0,105620.0,0.42572087]
[1749996621543,0.77594886,105630.0,105620.0,0.43518823]
[1749996621765,0.57714172,105630.0,105620.0,0.4446555]
[1749996622235,0.03786648,105630.0,105620.0,0.4456555]
[1749996622453,0.57714172,105630.0,105620.0,0.4456555]
[1749996622667,0.77594877,105630.0,105620.0,0.39831807]
[1749996622892,0.76648284,105630.0,105620.0,0.3786536]
[1749996623118,0.76648284,105630.0,105620.0,0.38812114]
[1749996623538,0.2272076,105630.0,105620.0,0.38812114]
[1749996623762,0.80916597,105630.0,105620.0,0.1698]
[1749996625608,0.80916597,105630.0,105620.0,0.001]
[1749996626685,0.74754929,105630.0,105620.0,0.001]
[1749996629665,0.75420321,105630.0,105620.0,0.001]
[1749996630346,0.75420319,105630.0,105620.0,0.001]
[1749996630556,0.74754929,105630.0,105620.0,0.001]
[1749996630978,0.91558929,105630.0,105620.0,0.001]
[1749996631190,5.80138228,105630.0,105620.0,0.001]
[1749996631413,6.23762346,105630.0,105620.0,0.001]
[1749996631619,6.23097012,105630.0,105620.0,0.001]
[1749996632233,6.23762322,105630.0,105620.0,0.001]
[1749996632443,6.23097012,105630.0,105620.0,0.001]
[1749996632655,6.23762317,105630.0,105620.0,0.001]
[1749996632852,6.23762322,105630.0,105620.0,0.001]
[1749996633272,6.23097012,105630.0,105620.0,0.001]
[1749996633484,6.23762297,105630.0,105620.0,0.001]
[1749996633694,6.25712291,105630.0,105620.0,0.001]
[1749996633900,6.25712289,105630.0,105620.0,0.001]
[1749996634161,6.25712291,105630.0,105620.0,0.001]
[1749996634387,0.19882579,105620.0,105610.0,4.737e-05]
[1749996634637,5.50219088,105620.0,105610.0,4.737e-05]
[1749996634864,5.52169088,105620.0,105610.0,4.737e-05]
[1749996635696,5.52269088,105620.0,105610.0,4.737e-05]
[1749996636136,5.52369088,105620.0,105610.0,4.737e-05]
[1749996636564,5.55255602,105620.0,105610.0,4.737e-05]
[1749996639184,5.89255602,105620.0,105610.0,4.737e-05]
[1749996639389,5.35328078,105620.0,105610.0,4.737e-05]
[1749996639596,5.87305602,105620.0,105610.0,4.737e-05]
[1749996640030,6.02127602,105620.0,105610.0,4.737e-05]
[1749996640451,6.02792676,105620.0,105610.0,4.737e-05]
[1749996640658,6.02792675,105620.0,105610.0,4.737e-05]
[1749996640877,6.02127602,105620.0,105610.0,0.01984737]
[1749996641512,6.02792672,105620.0,105610.0,0.01984737]
[1749996641754,5.31488078,105620.0,105610.0,0.01984737]
[1749996641964,6.02788672,105620.0,105610.0,0.01984737]
[1749996642414,6.02788675,105620.0,105610.0,4.737e-05]
[1749996642621,6.02788672,105620.0,105610.0,4.737e-05]
[1749996642856,6.22027726,105620.0,105610.0,4.737e-05]
[1749996643067,6.25957726,105620.0,105610.0,4.737e-05]
[1749996643486,6.252927,105620.0,105610.0,4.737e-05]
[1749996643723,6.25957662,105620.0,105610.0,4.737e-05]
[1749996643941,6.252927,105620.0,105610.0,4.737e-05]
[1749996644172,6.25957573,105620.0,105610.0,4.737e-05]
[1749996644382,0.19888228,105590.0,105580.0,0.0389]
[1749996644591,0.73815752,105590.0,105580.0,0.0389]
[1749996645492,0.73815752,105590.0,105580.0,0.2378013]
[1749996645916,0.73815752,105590.0,105580.0,0.2458013]
[1749996646119,0.72868711,105590.0,105580.0,0.2458013]
[1749996647207,0.73815752,105590.0,105580.0,0.25674392]
[1749996647422,0.73815752,105590.0,105580.0,0.25874392]
[1749996647663,0.73815752,105590.0,105580.0,0.27121496]
[1749996647873,0.89514917,105600.0,105590.0,0.22831187]
[1749996648286,0.72866917,105600.0,105590.0,0.22831187]
[1749996648516,0.73531862,105600.0,105590.0,0.22831187]
[1749996648992,0.73531862,105600.0,105590.0,0.23778246]
[1749996648993,0.72866917,105600.0,105590.0,0.23778246]
[1749996649220,0.7353186,105600.0,105590.0,0.23778246]
[1749996649442,0.73531846,105600.0,105590.0,0.24825287]
[1749996650077,0.73531848,105600.0,105590.0,0.24825287]
[1749996650298,0.73531849,105600.0,105590.0,0.24825287]
[1749996650502,0.7353185,105600.0,105590.0,0.23878246]
[1749996651136,0.72866917,105600.0,105590.0,0.23878246]
[1749996651546,0.73531845,105600.0,105590.0,0.23878246]
[1749996651764,0.72866917,105600.0,105590.0,0.24825296]
[1749996651974,0.73531845,105600.0,105590.0,0.24825296]
[1749996652150,0.73531859,105600.0,105590.0,0.24825296]
[1749996652368,0.72866917,105600.0,105590.0,0.24825296]
[1749996652790,0.73531884,105600.0,105590.0,0.24825296]
[1749996652999,0.72866917,105600.0,105590.0,0.24825296]
[1749996653431,0.73531888,105600.0,105590.0,0.24825296]
[1749996653643,0.72866917,105600.0,105590.0,0.24825296]
[1749996653871,0.73531911,105600.0,105590.0,0.24825296]
[1749996654098,0.72866917,105600.0,105590.0,0.24825296]
[1749996654305,0.73531923,105600.0,105590.0,0.24825296]
[1749996654525,0.73531924,105600.0,105590.0,0.24825296]
[1749996654739,0.72866917,105600.0,105590.0,0.24825296]
[1749996654953,0.73531922,105600.0,105590.0,0.24825296]
[1749996655138,0.72866917,105600.0,105590.0,0.24825296]
[1749996655376,0.73531921,105600.0,105590.0,0.24825296]
[1749996655815,0.72866917,105600.0,105590.0,0.24825296]
[1749996656024,0.72866917,105600.0,105590.0,0.23878246]
[1749996656234,0.73531921,105600.0,105590.0,0.23878246]
[1749996656470,0.72866917,105600.0,105590.0,0.24825287]
[1749996656687,0.73531921,105600.0,105590.0,0.23878246]
[1749996657352,0.73531921,105600.0,105590.0,0.24825296]
[1749996657565,0.7353192,105600.0,105590.0,0.24825296]
[1749996658238,0.72866917,105600.0,105590.0,0.24825296]
[1749996658870,0.72866917,105600.0,105590.0,0.25772337]
[1749996660007,0.72866917,105600.0,105590.0,0.24825296]
[1749996660275,0.72866917,105600.0,105590.0,0.27666329]
[1749996660276,0.00946906,105600.0,105590.0,0.27666329]
[1749996660488,0.01893697,105610.0,105600.0,0.24663259]
[1749996660708,0.03787394,105610.0,105600.0,0.25610192]
[1749996660922,0.03787322,105610.0,105600.0,0.25610192]
[1749996661133,0.04734193,105610.0,105600.0,0.25610192]
[1749996661565,0.23671793,105610.0,105600.0,0.25610192]
[1749996661780,0.03787322,105610.0,105600.0,0.42126192]
[1749996662008,0.23771793,105610.0,105600.0,0.42126192]
[1749996662228,0.04834193,105610.0,105600.0,0.42126192]
[1749996662449,0.04834193,105610.0,105600.0,0.25610192]
[1749996662673,0.03887322,105610.0,105600.0,0.25610192]
[1749996663115,0.22924922,105610.0,105600.0,0.24663286]
[1749996663337,0.23871802,105610.0,105600.0,0.2561021]
[1749996663559,0.03987322,105610.0,105600.0,0.27504031]
[1749996664654,0.0294046,105610.0,105600.0,0.27504031]
[1749996664926,0.02940442,105610.0,105600.0,0.27504031]
[1749996665151,0.02840433,105610.0,105600.0,0.27504031]
[1749996665601,0.02840433,105610.0,105600.0,0.27604031]
[1749996665830,0.03787277,105610.0,105600.0,0.27604031]
[1749996666494,0.02840433,105610.0,105600.0,0.27604031]
[1749996667141,0.01893607,105610.0,105600.0,0.27604031]